fUSD/lending_fUSD_20240625
["ID","MTS","AMOUNT","RATE_DAILY","PERIOD"]
[330383774,1719338021729,-1531.05,0.00022465,2]
[330383775,1719338021739,-588.37,0.00022465,2]
[330383776,1719338021748,-654.5,0.00022465,2]
[330383777,1719338021757,-500.0,0.00022465,2]
[330383778,1719338021766,-2960.82,0.00022465,2]
[330383779,1719338021776,-500.0,0.00022465,2]
[330383780,1719338021785,-500.0,0.00022465,2]
[330383781,1719338021794,-1310.42,0.00022465,2]
[330383782,1719338021804,-2408.83,0.00022465,2]
[330383783,1719338021814,-9360.45,0.00022465,2]
[330383784,1719338021823,-3984.57,0.00022465,2]
[330383785,1719338021833,-3587.57,0.00022465,2]
[330383786,1719338021842,-799.95,0.00022465,2]
[330383787,1719338021852,-1063.93,0.00022465,2]
[330383788,1719338021862,-4130.12,0.00022465,2]
[330383789,1719338021872,-1748.04,0.00022465,2]
[330383790,1719338021882,-500.0,0.00022465,2]
[330383791,1719338021891,-792.5,0.00022465,2]
[330383792,1719338021901,-550.72,0.00022465,2]
[330383793,1719338021911,-10614.48,0.00022465,2]
[330383794,1719338021920,-3298.16,0.00022465,2]
[330383795,1719338021929,-1468.33,0.00022465,2]
[330383796,1719338021941,-344.77404421,0.00022465,2]
[330383797,1719338021952,-5401.34,0.00022465,2]
[330383798,1719338021962,-1746.97,0.00022465,2]
[330383799,1719338021972,-1075.13,0.00022465,2]
[330383800,1719338021981,-12850.46,0.00022465,2]
[330383801,1719338021991,-500.0,0.00022465,2]
[330383802,1719338022001,-3728.91,0.00022465,2]
[330383803,1719338022011,-1619.57,0.00022465,2]
[330383804,1719338022021,-533.36,0.00022465,2]
[330383805,1719338022030,-765.33,0.00022465,2]
[330383806,1719338022041,-500.0,0.00022465,2]
[330383807,1719338022051,-687.55,0.00022465,2]
[330383808,1719338022060,-1253.15,0.00022465,2]
[330383809,1719338022070,-500.0,0.00022465,2]
[330383810,1719338022080,-6211.69,0.00022465,2]
[330383811,1719338022089,-3214.85,0.00022465,2]
[330383812,1719338022099,-1196.83,0.00022465,2]
[330383813,1719338022109,-1365.93,0.00022465,2]
[330383814,1719338022119,-1014.47,0.00022465,2]
[330383815,1719338022129,-2068.49,0.00022465,2]
[330383816,1719338022139,-3277.71,0.00022465,2]
[330383817,1719338022150,-2994.62,0.00022465,2]
[330383818,1719338022160,-4078.1,0.00022465,2]
[330383819,1719338022170,-500.0,0.00022465,2]
[330383820,1719338022180,-500.0,0.00022465,2]
[330383821,1719338022195,-4726.64,0.00022465,2]
[330383822,1719338022205,-790.4,0.00022465,2]
[330383823,1719338022215,-5216.67,0.00022465,2]
[330383824,1719338022224,-1436.06,0.00022465,2]
[330383825,1719338022236,-1482.28,0.00022465,2]
[330383826,1719338022246,-500.0,0.00022465,2]
[330383827,1719338022256,-1827.73,0.00022465,2]
[330383828,1719338022267,-686.96,0.00022465,2]
[330383829,1719338022277,-570.6,0.00022465,2]
[330383830,1719338022288,-450.0,0.0002249,2]
[330383831,1719338022298,-12058.56,0.00022562,2]
[330383832,1719338022308,-4417.99,0.00022562,2]
[330383833,1719338022317,-2500.0,0.00022739,3]
[330383834,1719338022327,-500.0,0.00022739,2]
[330383835,1719338022337,-500.0,0.00022739,2]
[330383836,1719338022347,-1041.25,0.00022739,2]
[330383837,1719338022357,-746.42,0.00022739,2]
[330383838,1719338022367,-867.14,0.00022739,2]
[330383839,1719338022377,-751.61,0.00022739,2]
[330383840,1719338022388,-1356.99,0.00022739,2]
[330383841,1719338022398,-1175.6,0.00022739,2]
[330383842,1719338022412,-1372.16,0.00022739,2]
[330383843,1719338022423,-2625.16,0.00022739,2]
[330383844,1719338022434,-1523.16,0.00022739,2]
[330383845,1719338022445,-531.38,0.00022739,2]
[330383846,1719338022454,-761.88,0.00022739,2]
[330383847,1719338022464,-983.79,0.00022739,2]
[330383848,1719338022475,-638.84,0.00022739,2]
[330383849,1719338022485,-1492.67,0.00022739,2]
[330383850,1719338022496,-1515.14,0.00022739,2]
[330383851,1719338022506,-1556.79,0.00022739,2]
[330383852,1719338022517,-785.12,0.00022739,2]
[330383853,1719338022528,-865.89,0.00022739,2]
[330383854,1719338022538,-617.17,0.00022739,2]
[330383855,1719338022548,-1076.26,0.00022739,2]
[330383856,1719338022558,-1752.72,0.00022739,2]
[330383857,1719338022568,-554.99,0.00022739,2]
[330383858,1719338022578,-500.0,0.00022739,2]
[330383859,1719338022588,-1673.1,0.00022739,2]
[330383860,1719338022598,-500.0,0.00022739,2]
[330383861,1719338022608,-1196.42,0.00022739,2]
[330383862,1719338022618,-500.0,0.00022739,2]
[330383863,1719338022628,-546.0,0.00022739,2]
[330383864,1719338022638,-500.0,0.00022739,2]
[330383865,1719338022649,-500.0,0.00022739,2]
[330383866,1719338022659,-1230.45,0.00022739,2]
[330383867,1719338022670,-1638.27,0.00022739,2]
[330383868,1719338022680,-721.81,0.00022739,2]
[330383869,1719338022692,-500.0,0.00022739,2]
[330383870,1719338022703,-916.29,0.00022739,2]
[330383871,1719338022713,-1110.71,0.00022739,2]
[330383872,1719338022724,-1305.49,0.00022739,2]
[330383873,1719338022733,-813.41,0.00022739,2]
[330383874,1719338022743,-514.89647462,0.00022739,2]
[330383875,1719338022753,-738.2,0.00022739,2]
[330383876,1719338022763,-629.35,0.00022739,2]
[330383877,1719338022774,-2096.31,0.00022739,2]
[330383878,1719338022785,-2936.53,0.00022739,2]
[330383879,1719338022795,-500.0,0.00022739,2]
[330383880,1719338022805,-500.0,0.00022739,2]
[330383881,1719338022816,-500.0,0.00022739,2]
[330383882,1719338022826,-717.21,0.00022739,2]
[330383883,1719338022837,-759.42,0.00022739,2]
[330383884,1719338022847,-524.13,0.00022739,2]
[330383885,1719338022858,-598.1,0.00022739,2]
[330383886,1719338022868,-589.92,0.00022739,2]
[330383887,1719338022878,-971.03,0.00022739,2]
[330383888,1719338022889,-675.22,0.00022739,2]
[330383889,1719338022899,-500.0,0.00022739,2]
[330383890,1719338022910,-669.2,0.00022739,2]
[330383891,1719338022920,-905.04,0.00022739,2]
[330383892,1719338022931,-1247.28,0.00022739,2]
[330383893,1719338022943,-206.97,0.00022739,2]
[330383894,1719338022954,-1109.18,0.00022739,2]
[330383895,1719338022965,-500.0,0.00022739,2]
[330383896,1719338022976,-500.0,0.00022739,2]
[330383897,1719338022986,-1096.34,0.00022739,2]
[330383898,1719338022997,-1550.19,0.00022739,2]
[330383899,1719338023008,-500.0,0.00022739,2]
[330383900,1719338023019,-757.11,0.00022739,2]
[330383901,1719338023030,-1826.94,0.00022739,2]
[330383902,1719338023040,-773.72,0.00022739,2]
[330383903,1719338023052,-500.0,0.00022739,2]
[330383904,1719338023062,-1728.25,0.00022739,2]
[330383905,1719338023073,-973.7,0.00022739,2]
[330383906,1719338023084,-773.97,0.00022739,2]
[330383907,1719338023094,-1154.02,0.00022739,2]
[330383908,1719338023104,-1784.58,0.00022739,2]
[330383909,1719338023115,-658.68,0.00022739,2]
[330383910,1719338023125,-525.47,0.00022739,2]
[330383911,1719338023136,-500.0,0.00022739,2]
[330383912,1719338023146,-894.86,0.00022739,2]
[330383913,1719338023156,-1106.26,0.00022739,2]
[330383914,1719338023167,-556.82,0.00022739,2]
[330383915,1719338023177,-1088.59,0.00022739,2]
[330383916,1719338023190,-500.0,0.00022739,2]
[330383917,1719338023205,-1061.87,0.00022739,2]
[330383918,1719338023219,-1519.41,0.00022739,2]
[330383919,1719338023229,-1886.29,0.00022739,2]
[330383920,1719338023240,-671.23,0.00022739,2]
[330383921,1719338023250,-842.01,0.00022739,2]
[330383922,1719338023261,-848.32,0.00022739,2]
[330383923,1719338023271,-571.84,0.00022739,2]
[330383924,1719338023283,-1275.37,0.00022739,2]
[330383925,1719338023294,-547.07,0.00022739,2]
[330383926,1719338023304,-708.32,0.00022739,2]
[330383927,1719338023315,-545.35,0.00022739,2]
[330383928,1719338023325,-500.0,0.00022739,2]
[330383929,1719338023337,-1199.18,0.00022739,2]
[330383930,1719338023347,-500.0,0.00022739,2]
[330383931,1719338023358,-2554.0,0.00022739,2]
[330383932,1719338023369,-896.63,0.00022739,2]
[330383933,1719338023379,-1510.6,0.00022739,2]
[330383934,1719338023389,-899.64,0.00022739,2]
[330383935,1719338023400,-678.52,0.00022739,2]
[330383936,1719338023412,-2297.51,0.00022739,2]
[330383937,1719338023423,-500.0,0.00022739,2]
[330383938,1719338023435,-500.0,0.00022739,2]
[330383939,1719338023445,-706.8,0.00022739,2]
[330383940,1719338023456,-500.0,0.00022739,2]
[330383941,1719338023466,-500.0,0.00022739,2]
[330383942,1719338023476,-2864.14,0.00022739,2]
[330383943,1719338023488,-500.0,0.00022739,2]
[330383944,1719338023498,-767.35,0.00022739,2]
[330383945,1719338023508,-1219.8,0.00022739,2]
[330383946,1719338023518,-817.0,0.00022739,2]
[330383947,1719338023529,-602.68,0.00022739,2]
[330383948,1719338023539,-500.0,0.00022739,2]
[330383949,1719338023549,-750.73,0.00022739,2]
[330383950,1719338023559,-983.23,0.00022739,2]
[330383951,1719338023569,-2190.09,0.00022739,2]
[330383952,1719338023580,-1053.59,0.00022739,2]
[330383953,1719338023590,-478.7623641,0.00022739,2]
[330383954,1719338023600,-1755.84,0.00022739,2]
[330383955,1719338023610,-502.66,0.00022739,2]
[330383956,1719338023620,-811.39,0.00022739,2]
[330383957,1719338023630,-1075.29,0.00022739,2]
[330383958,1719338023641,-1534.29,0.00022739,2]
[330383959,1719338023651,-1408.46,0.00022739,2]
[330383960,1719338023662,-545.9,0.00022739,2]
[330383961,1719338023672,-721.67,0.00022739,2]
[330383962,1719338023683,-881.26,0.00022739,2]
[330383963,1719338023695,-1154.57,0.00022739,2]
[330383964,1719338023705,-1299.57,0.00022739,2]
[330383965,1719338023716,-500.0,0.00022739,2]
[330383966,1719338023726,-561.35,0.00022739,2]
[330383967,1719338023736,-764.04,0.00022739,2]
[330383968,1719338023746,-2576.08,0.00022739,2]
[330383969,1719338023757,-500.0,0.00022739,2]
[330383970,1719338023767,-500.0,0.00022739,2]
[330383971,1719338023777,-500.0,0.00022739,2]
[330383972,1719338023788,-1230.16,0.00022739,2]
[330383973,1719338023799,-1956.39,0.00022739,2]
[330383974,1719338023809,-947.68,0.00022739,2]
[330383975,1719338023820,-654.42,0.00022739,2]
[330383976,1719338023830,-2524.99,0.00022739,2]
[330383977,1719338023840,-947.4,0.00022739,2]
[330383978,1719338023850,-1606.65,0.00022739,2]
[330383979,1719338023861,-1554.23,0.00022739,2]
[330383980,1719338023871,-754.05,0.00022739,2]
[330383981,1719338023881,-526.12,0.00022739,2]
[330383982,1719338023891,-553.36,0.00022739,2]
[330383983,1719338023903,-500.0,0.00022739,2]
[330383984,1719338023913,-500.0,0.00022739,2]
[330383985,1719338023924,-1472.44,0.00022739,2]
[330383986,1719338023935,-2884.08,0.00022739,2]
[330383987,1719338023946,-852.6,0.00022739,2]
[330383988,1719338023956,-764.29,0.00022739,2]
[330383989,1719338023966,-1169.5,0.00022739,2]
[330383990,1719338023975,-500.0,0.00022739,2]
[330383991,1719338023986,-1362.64,0.00022739,2]
[330383992,1719338023996,-581.63,0.00022739,2]
[330383993,1719338024006,-686.07,0.00022739,2]
[330383994,1719338024018,-753.97,0.00022739,2]
[330383995,1719338024027,-508.41,0.00022739,2]
[330383996,1719338024038,-666.55,0.00022739,2]
[330383997,1719338024048,-666.4,0.00022739,2]
[330383998,1719338024059,-500.0,0.00022739,2]
[330383999,1719338024070,-3770.43,0.00022739,2]
[330384000,1719338024080,-806.51,0.00022739,2]
[330384001,1719338024091,-1414.23,0.00022739,2]
[330384002,1719338024102,-836.39,0.00022739,2]
[330384003,1719338024113,-2037.79,0.00022739,2]
[330384004,1719338024123,-735.13,0.00022739,2]
[330384005,1719338024134,-500.0,0.00022739,2]
[330384006,1719338024144,-1917.68,0.00022739,2]
[330384007,1719338024154,-8800.46,0.00022739,2]
[330384008,1719338024165,-500.0,0.00022739,2]
[330384009,1719338024176,-879.5,0.00022739,2]
[330384010,1719338024186,-500.0,0.00022739,2]
[330384011,1719338024201,-828.4,0.00022739,2]
[330384012,1719338024212,-2609.54,0.00022739,2]
[330384013,1719338024222,-3037.31,0.00022739,2]
[330384014,1719338024233,-958.33,0.00022739,2]
[330384015,1719338024244,-500.0,0.00022739,2]
[330384016,1719338024254,-500.0,0.00022739,2]
[330384017,1719338024264,-2824.72,0.00022739,2]
[330384018,1719338024274,-1143.56,0.00022739,2]
[330384019,1719338024286,-803.49,0.00022739,2]
[330384020,1719338024297,-1534.53,0.00022739,2]
[330384021,1719338024307,-673.18,0.00022739,2]
[330384022,1719338024317,-620.54,0.00022739,2]
[330384023,1719338024327,-500.0,0.00022739,2]
[330384024,1719338024338,-500.0,0.00022739,2]
[330384025,1719338024348,-3376.21,0.00022739,2]
[330384026,1719338024688,-3376.96,0.00022739,2]
[330384027,1719338024700,-501.21,0.00022739,2]
[330384028,1719338024710,-500.0,0.00022739,2]
[330384029,1719338024720,-532.64,0.00022739,2]
[330384030,1719338024730,-3353.42,0.00022739,2]
[330384031,1719338024739,-1445.77,0.00022739,2]
[330384032,1719338024749,-2523.52,0.00022739,2]
[330384033,1719338024758,-1776.47,0.00022739,2]
[330384034,1719338024768,-500.0,0.00022739,2]
[330384035,1719338024777,-584.05,0.00022739,2]
[330384036,1719338024787,-2900.66,0.00022739,2]
[330384037,1719338024796,-3124.53,0.00022739,2]
[330384038,1719338024806,-2238.06,0.00022739,2]
[330384039,1719338024816,-762.22,0.00022739,2]
[330384040,1719338024826,-2923.75,0.00022739,2]
[330384041,1719338024836,-700.23,0.00022739,2]
[330384042,1719338024845,-2060.1,0.00022739,2]
[330384043,1719338024855,-1916.65,0.00022739,2]
[330384044,1719338024865,-813.4,0.00022739,2]
[330384045,1719338024875,-1733.73,0.00022739,2]
[330384046,1719338024885,-579.87,0.00022739,2]
[330384047,1719338024894,-1319.57,0.00022739,2]
[330384048,1719338024904,-500.0,0.00022739,2]
[330384049,1719338024915,-594.09,0.00022739,2]
[330384050,1719338024925,-500.0,0.00022739,2]
[330384051,1719338024934,-1466.86,0.00022739,2]
[330384052,1719338024945,-805.41,0.00022739,2]
[330384053,1719338024956,-747.48,0.00022739,2]
[330384054,1719338024966,-1175.45,0.00022739,2]
[330384055,1719338024976,-823.04,0.00022739,2]
[330384056,1719338024986,-2342.23,0.00022739,2]
[330384057,1719338024995,-1142.76,0.00022739,2]
[330384058,1719338025005,-500.0,0.00022739,2]
[330384059,1719338025015,-500.0,0.00022739,2]
[330384060,1719338025024,-1742.95,0.00022739,2]
[330384061,1719338025033,-4082.89,0.00022739,2]
[330384062,1719338025044,-500.0,0.00022739,2]
[330384063,1719338025054,-2181.34,0.00022739,2]
[330384064,1719338025064,-1689.47,0.00022739,2]
[330384065,1719338025074,-2213.32,0.00022739,2]
[330384066,1719338025083,-585.34,0.00022739,2]
[330384067,1719338025094,-1800.31,0.00022739,2]
[330384068,1719338025104,-528.88,0.00022739,2]
[330384069,1719338025114,-4580.93,0.00022739,2]
[330384070,1719338025124,-3101.99,0.00022739,2]
[330384071,1719338025134,-2613.05,0.00022739,2]
[330384072,1719338025145,-1971.62,0.00022739,2]
[330384073,1719338025155,-1370.76,0.00022739,2]
[330384074,1719338025165,-1886.11,0.00022739,2]
[330384075,1719338025175,-500.0,0.00022739,2]
[330384076,1719338025185,-500.0,0.00022739,2]
[330384077,1719338025197,-500.0,0.00022739,2]
[330384078,1719338025213,-704.37,0.00022739,2]
[330384079,1719338025224,-4341.89,0.00022739,2]
[330384080,1719338025234,-1807.06,0.00022739,2]
[330384081,1719338025244,-500.0,0.00022739,2]
[330384082,1719338025255,-1880.49,0.00022739,2]
[330384083,1719338025266,-1338.15,0.00022739,2]
[330384084,1719338025276,-2231.21,0.00022739,2]
[330384085,1719338025286,-221.1518557,0.00022739,2]
[330384086,1719338025296,-619.17,0.00022739,2]
[330384087,1719338025306,-1282.5,0.00022739,2]
[330384088,1719338025316,-916.11,0.00022739,2]
[330384089,1719338025326,-2445.36,0.00022739,2]
[330384090,1719338025335,-800.62,0.00022739,2]
[330384091,1719338025345,-2602.84,0.00022739,2]
[330384092,1719338025356,-883.29,0.00022739,2]
[330384093,1719338025366,-4820.28,0.00022739,2]
[330384094,1719338025376,-529.48,0.00022739,2]
[330384095,1719338025386,-1772.0,0.00022739,2]
[330384096,1719338025396,-2640.7,0.00022739,2]
[330384097,1719338025406,-1941.76,0.00022739,2]
[330384098,1719338025416,-1217.56,0.00022739,2]
[330384099,1719338025427,-500.0,0.00022739,2]
[330384100,1719338025437,-1336.39,0.00022739,2]
[330384101,1719338025447,-500.0,0.00022739,2]
[330384102,1719338025457,-1409.22,0.00022739,2]
[330384103,1719338025467,-1027.49,0.00022739,2]
[330384104,1719338025476,-592.68,0.00022739,2]
[330384105,1719338025486,-814.4,0.00022739,2]
[330384106,1719338025495,-965.36,0.00022739,2]
[330384107,1719338025505,-839.77,0.00022739,2]
[330384108,1719338025514,-1417.51,0.00022739,2]
[330384109,1719338025525,-1173.93,0.00022739,2]
[330384110,1719338025534,-657.51,0.00022739,7]
[330384111,1719338025544,-951.86,0.00022739,2]
[330384112,1719338025554,-835.47,0.00022739,2]
[330384113,1719338025563,-3257.55,0.00022739,2]
[330384114,1719338025573,-2073.78,0.00022739,2]
[330384115,1719338025583,-2021.58,0.00022739,2]
[330384116,1719338025592,-2007.39,0.00022739,2]
[330384117,1719338025601,-973.12,0.00022739,2]
[330384118,1719338025611,-500.0,0.00022739,2]
[330384119,1719338025621,-567.86,0.00022739,2]
[330384120,1719338025631,-500.0,0.00022739,2]
[330384121,1719338025640,-957.72,0.00022739,2]
[330384122,1719338025651,-683.7,0.00022739,2]
[330384123,1719338025660,-4421.52,0.00022739,2]
[330384124,1719338025670,-1115.85,0.00022739,2]
[330384125,1719338025680,-597.24,0.00022739,2]
[330384126,1719338025690,-517.85,0.00022739,2]
[330384127,1719338025700,-500.0,0.00022739,2]
[330384128,1719338025709,-576.07518379,0.00022739,2]
[330384129,1719338025719,-1088.07,0.00022739,2]
[330384130,1719338025728,-857.24,0.00022739,2]
[330384131,1719338025737,-2633.78,0.00022739,2]
[330384132,1719338025747,-2105.71,0.00022739,2]
[330384133,1719338025756,-500.0,0.00022739,2]
[330384134,1719338025766,-1021.73,0.00022739,2]
[330384135,1719338025776,-3949.53,0.00022739,2]
[330384136,1719338025786,-3888.53,0.00022739,2]
[330384137,1719338025795,-2302.84,0.00022739,2]
[330384138,1719338025805,-4247.19,0.00022739,2]
[330384139,1719338025815,-505.78471182,0.00022739,2]
[330384140,1719338025824,-918.37,0.00022739,2]
[330384141,1719338025833,-500.0,0.00022739,2]
[330384142,1719338025843,-3324.06,0.00022739,2]
[330384143,1719338025853,-4509.77,0.00022739,2]
[330384144,1719338025863,-524.5,0.00022739,2]
[330384145,1719338025873,-770.81,0.00022739,2]
[330384146,1719338025882,-2990.81,0.00022739,2]
[330384147,1719338025892,-4435.09,0.00022739,2]
[330384148,1719338025901,-787.48,0.00022739,2]
[330384149,1719338025910,-816.41,0.00022739,2]
[330384150,1719338025920,-524.09,0.00022739,2]
[330384151,1719338025929,-588.33,0.00022739,2]
[330384152,1719338025938,-2156.33,0.00022739,2]
[330384153,1719338025947,-3040.27,0.00022739,2]
[330384154,1719338025957,-820.87,0.00022739,2]
[330384155,1719338025966,-1819.63,0.00022739,2]
[330384156,1719338025975,-615.73,0.00022739,2]
[330384157,1719338025985,-3953.78,0.00022739,2]
[330384158,1719338025994,-593.21,0.00022739,2]
[330384159,1719338026004,-752.59,0.00022739,2]
[330384160,1719338026013,-1620.29,0.00022739,2]
[330384161,1719338026023,-1102.6,0.00022739,2]
[330384162,1719338026032,-2816.47,0.00022739,2]
[330384163,1719338026042,-726.8,0.00022739,2]
[330384164,1719338026051,-500.0,0.00022739,2]
[330384165,1719338026061,-904.28,0.00022739,2]
[330384166,1719338026071,-4616.86,0.00022739,2]
[330384167,1719338026081,-2389.99,0.00022739,2]
[330384168,1719338026090,-1761.28,0.00022739,2]
[330384169,1719338026100,-1001.05,0.00022739,2]
[330384170,1719338026109,-745.04,0.00022739,2]
[330384171,1719338026119,-1342.38,0.00022739,2]
[330384172,1719338026128,-4472.18,0.00022739,2]
[330384173,1719338026138,-4354.84,0.00022739,2]
[330384174,1719338026147,-1202.61,0.00022739,2]
[330384175,1719338026157,-500.0,0.00022739,2]
[330384176,1719338026167,-956.56,0.00022739,2]
[330384177,1719338026176,-4593.86,0.00022739,2]
[330384178,1719338026186,-1877.02,0.00022739,2]
[330384179,1719338026201,-528.63,0.00022739,2]
[330384180,1719338026215,-1269.87,0.00022739,2]
[330384181,1719338026225,-500.0,0.00022739,2]
[330384182,1719338026235,-500.0,0.00022739,2]
[330384183,1719338026246,-500.0,0.00022739,2]
[330384184,1719338026255,-1489.93,0.00022739,2]
[330384185,1719338026264,-435.21946044,0.00022739,2]
[330384186,1719338026274,-875.21,0.00022739,2]
[330384187,1719338026284,-4713.61,0.00022739,2]
[330384188,1719338026293,-3570.88,0.00022739,2]
[330384189,1719338026303,-2157.36,0.00022739,2]
[330384190,1719338026313,-3239.05,0.00022739,2]
[330384191,1719338026322,-517.55,0.00022739,2]
[330384192,1719338026332,-3523.21,0.00022739,2]
[330384193,1719338026342,-724.21,0.00022739,2]
[330384194,1719338026352,-88150.18,0.00022739,2]
[330384195,1719338026361,-7491.31,0.00022739,2]
[330384196,1719338026371,-500.0,0.00022739,2]
[330384197,1719338026380,-1942.81,0.00022739,2]
[330384198,1719338026390,-1819.03,0.00022739,2]
[330384199,1719338026399,-504.65,0.00022739,2]
[330384200,1719338026411,-755.86,0.00022739,2]
[330384201,1719338026421,-503.8,0.00022739,2]
[330384202,1719338026430,-500.0,0.00022739,2]
[330384203,1719338026440,-500.0,0.00022739,2]
[330384204,1719338026449,-1033.56,0.00022739,2]
[330384205,1719338026458,-867.52,0.00022739,2]
[330384206,1719338026467,-3677.19,0.00022739,2]
[330384207,1719338026476,-869.1,0.00022739,2]
[330384208,1719338026486,-2597.7,0.00022739,2]
[330384209,1719338026495,-1409.52,0.00022739,2]
[330384210,1719338026504,-719.97,0.00022739,2]
[330384211,1719338026513,-500.0,0.00022739,2]
[330384212,1719338026522,-4086.22,0.00022739,2]
[330384213,1719338026532,-522.58,0.00022739,2]
[330384214,1719338026541,-504.45,0.00022739,2]
[330384215,1719338026550,-500.0,0.00022739,2]
[330384216,1719338026559,-4448.43,0.00022739,2]
[330384217,1719338026568,-1285.26,0.00022739,2]
[330384218,1719338026577,-881.49,0.00022739,2]
[330384219,1719338026587,-1817.94,0.00022739,2]
[330384220,1719338026596,-922.55,0.00022739,2]
[330384221,1719338026606,-4305.82,0.00022739,2]
[330384222,1719338026615,-5556.35,0.00022739,2]
[330384223,1719338026624,-500.0,0.00022739,2]
[330384224,1719338026634,-1507.92,0.00022739,2]
[330384225,1719338026643,-2413.43,0.00022739,2]
[330384226,1719338026652,-3590.68,0.00022739,2]
[330384227,1719338026661,-1298.55,0.00022739,2]
[330384228,1719338026670,-1317.91,0.00022739,2]
[330384229,1719338026680,-1549.61,0.00022739,2]
[330384230,1719338026691,-2001.24,0.00022739,2]
[330384231,1719338026700,-564.53,0.00022739,2]
[330384232,1719338026709,-3243.57,0.00022739,2]
[330384233,1719338026720,-1628.62,0.00022739,2]
[330384234,1719338026729,-2964.41,0.00022739,2]
[330384235,1719338026738,-733.32,0.00022739,2]
[330384236,1719338026747,-3914.84,0.00022739,2]
[330384237,1719338026756,-500.0,0.00022739,2]
[330384238,1719338026766,-3375.19,0.00022739,2]
[330384239,1719338026775,-2549.76,0.00022739,2]
[330384240,1719338026785,-971.21,0.00022739,2]
[330384241,1719338026794,-1141.9,0.00022739,2]
[330384242,1719338026803,-4437.26,0.00022739,2]
[330384243,1719338026813,-500.0,0.00022739,2]
[330384244,1719338026822,-716.2,0.00022739,2]
[330384245,1719338026831,-2142.83,0.00022739,2]
[330384246,1719338026843,-14641.98,0.00022739,2]
[330384247,1719338026854,-1706.95,0.00022739,2]
[330384248,1719338026864,-1309.2,0.00022739,2]
[330384249,1719338026873,-6040.67,0.00022739,2]
[330384250,1719338026883,-500.0,0.00022739,2]
[330384251,1719338026892,-1734.08,0.00022739,2]
[330384252,1719338026901,-1799.68,0.00022739,2]
[330384253,1719338026911,-500.0,0.00022739,2]
[330384254,1719338026921,-1105.8,0.00022739,2]
[330384255,1719338026930,-955.34,0.00022739,2]
[330384256,1719338026940,-500.0,0.00022739,2]
[330384257,1719338026950,-1732.57,0.00022739,2]
[330384258,1719338026959,-2122.24,0.00022739,2]
[330384259,1719338026968,-932.92,0.00022739,2]
[330384260,1719338026977,-1579.37,0.00022739,2]
[330384261,1719338026986,-3399.27,0.00022739,2]
[330384262,1719338026996,-2440.43,0.00022739,2]
[330384263,1719338027006,-3708.7,0.00022739,2]
[330384264,1719338027020,-1254.93,0.00022739,2]
[330384265,1719338027030,-2081.22,0.00022739,2]
[330384266,1719338027040,-1071.44,0.00022739,2]
[330384267,1719338027051,-500.0,0.00022739,2]
[330384268,1719338027060,-2321.72,0.00022739,2]
[330384269,1719338027070,-1241.56,0.00022739,2]
[330384270,1719338027079,-59416.31,0.00022739,2]
[330384271,1719338027088,-565.98,0.00022739,2]
[330384272,1719338027097,-5136.03,0.00022739,2]
[330384273,1719338027107,-2376.71,0.00022739,2]